[Event "Titled Tuesday Blitz November 29 Early 2022"]
[White "Berezin, Viktor"]
[Black "Stankovic, Ivan G"]
[WhiteFideId "14107872"]
[BlackFideId "902837"]
[WhiteElo "2310"]
[BlackElo "2226"]
[Result "1-0"]
[Round "07"]
[TimeControl "180+1"]
[Date "2022.11.30"]
[WhiteClock "0:00:25"]
[BlackClock "0:00:07"]

1. Nf3 {[%clk 0:03:00]}  c5 {[%clk 0:02:48]} 2. g3 {[%clk 0:02:55]}  Nc6 {[%clk 0:02:48]} 3. Bg2 {[%clk 0:02:54]}  g6 {[%clk 0:02:48]} 4. O-O {[%clk 0:02:54]}  Bg7 {[%clk 0:02:48]} 5. c4 {[%clk 0:02:54]}  e5 {[%clk 0:02:48]} 6. Nc3 {[%clk 0:02:54]}  Nge7 {[%clk 0:02:48]} 7. d3 {[%clk 0:02:55]}  d6 {[%clk 0:02:48]} 8. Rb1 {[%clk 0:02:55]}  O-O {[%clk 0:02:47]} 9. Ne1 {[%clk 0:02:56]}  Be6 {[%clk 0:02:46]} 10. Nc2 {[%clk 0:02:54]}  d5 {[%clk 0:02:45]} 11. cxd5 {[%clk 0:02:53]}  Nxd5 {[%clk 0:02:46]} 12. Ne3 {[%clk 0:02:53]}  Nde7 {[%clk 0:02:46]} 13. Qa4 {[%clk 0:02:44]}  Rc8 {[%clk 0:02:44]} 14. Nc4 {[%clk 0:02:38]}  b6 {[%clk 0:02:41]} 15. a3 {[%clk 0:02:34]}  f5 {[%clk 0:02:25]} 16. b4 {[%clk 0:02:31]}  e4 {[%clk 0:02:24]} 17. Nb5 {[%clk 0:02:16]}  Bxc4 {[%clk 0:01:54]} 18. dxc4 {[%clk 0:02:12]}  Nd4 {[%clk 0:01:55]} 19. Nxd4 {[%clk 0:01:42]}  cxd4 {[%clk 0:01:54]} 20. c5 {[%clk 0:01:35]}  bxc5 {[%clk 0:01:51]} 21. bxc5 {[%clk 0:01:36]}  Rxc5 {[%clk 0:01:49]} 22. Qxa7 {[%clk 0:01:34]}  Ra5 {[%clk 0:01:30]} 23. Qb7 {[%clk 0:01:30]}  Nd5 {[%clk 0:01:25]} 24. Bd2 {[%clk 0:01:13]}  Rxa3 {[%clk 0:01:20]} 25. Rb5 {[%clk 0:01:08]}  Nc3 {[%clk 0:01:19]} 26. Bxc3 {[%clk 0:01:08]}  dxc3 {[%clk 0:01:15]} 27. g4 {[%clk 0:01:00]}  Qa8 {[%clk 0:01:08]} 28. Qe7 {[%clk 0:00:54]}  Rf7 {[%clk 0:01:07]} 29. Qd6 {[%clk 0:00:48]}  Bf8 {[%clk 0:01:03]} 30. Qe6 {[%clk 0:00:46]}  Ra6 {[%clk 0:00:58]} 31. Qb3 {[%clk 0:00:46]}  Rc6 {[%clk 0:00:56]} 32. gxf5 {[%clk 0:00:43]}  gxf5 {[%clk 0:00:51]} 33. Rxf5 {[%clk 0:00:37]}  Qb7 {[%clk 0:00:28]} 34. Qxb7 {[%clk 0:00:32]}  Rxb7 {[%clk 0:00:27]} 35. Bxe4 {[%clk 0:00:32]}  c2 {[%clk 0:00:21]} 36. Bxc6 {[%clk 0:00:24]}  Rb1 {[%clk 0:00:20]} 37. Bd5+ {[%clk 0:00:25]}  Kg7 {[%clk 0:00:17]} 38. Rf7+ {[%clk 0:00:25]}  Kg6 {[%clk 0:00:15]} 39. Rc7 {[%clk 0:00:25]}  Rb2 {[%clk 0:00:07]} 40. Be4+ {[%clk 0:00:25]}  Kf6 {[%clk 0:00:07]} 41. Rxc2 {[%clk 0:00:25]}  Rb4 {[%clk 0:00:07]} 42. Bf3 {[%clk 0:00:25]} 1-0


[Site "https://www.chess.com"]

[Event "Titled Tuesday Blitz November 29 Early 2022"]
[White "Bettalli, Francesco"]
[Black "Drozdowski, Kacper"]
[WhiteFideId "2816453"]
[BlackFideId "1136720"]
[WhiteElo "2216"]
[BlackElo "2485"]
[Result "0-1"]
[Round "07"]
[TimeControl "180+1"]
[Date "2022.11.30"]
[WhiteClock "0:00:15"]
[BlackClock "0:00:19"]

1. d4 {[%clk 0:02:55]}  Nf6 {[%clk 0:02:59]} 2. Nc3 {[%clk 0:02:55]}  d5 {[%clk 0:02:59]} 3. Bg5 {[%clk 0:02:55]}  c6 {[%clk 0:03:00]} 4. Qd3 {[%clk 0:02:52]}  h6 {[%clk 0:02:58]} 5. Bxf6 {[%clk 0:02:52]}  exf6 {[%clk 0:02:58]} 6. e4 {[%clk 0:02:53]}  dxe4 {[%clk 0:02:57]} 7. Nxe4 {[%clk 0:02:54]}  Qa5+ {[%clk 0:02:54]} 8. c3 {[%clk 0:02:53]}  Be7 {[%clk 0:02:54]} 9. Nf3 {[%clk 0:02:53]}  O-O {[%clk 0:02:53]} 10. Be2 {[%clk 0:02:54]}  Bf5 {[%clk 0:02:44]} 11. Nfd2 {[%clk 0:02:45]}  Bg6 {[%clk 0:02:37]} 12. Qg3 {[%clk 0:02:40]}  Nd7 {[%clk 0:02:31]} 13. O-O {[%clk 0:02:30]}  Rfe8 {[%clk 0:02:10]} 14. Rfe1 {[%clk 0:02:26]}  Bf8 {[%clk 0:02:05]} 15. Bc4 {[%clk 0:02:24]}  Kh7 {[%clk 0:01:54]} 16. Nd6 {[%clk 0:02:21]}  Bxd6 {[%clk 0:01:47]} 17. Qxd6 {[%clk 0:02:22]}  Nb6 {[%clk 0:01:48]} 18. Bb3 {[%clk 0:02:21]}  Rad8 {[%clk 0:01:42]} 19. Qc7 {[%clk 0:02:21]}  Rd7 {[%clk 0:01:40]} 20. Qf4 {[%clk 0:02:15]}  Rde7 {[%clk 0:01:39]} 21. Rxe7 {[%clk 0:02:15]}  Rxe7 {[%clk 0:01:40]} 22. h4 {[%clk 0:02:04]}  Qf5 {[%clk 0:01:27]} 23. Qxf5 {[%clk 0:01:58]}  Bxf5 {[%clk 0:01:28]} 24. Nc4 {[%clk 0:01:53]}  Nd5 {[%clk 0:01:24]} 25. Nd6 {[%clk 0:01:49]}  Bg6 {[%clk 0:01:15]} 26. Bc4 {[%clk 0:01:45]}  Nb6 {[%clk 0:01:10]} 27. Bf1 {[%clk 0:01:43]}  Rd7 {[%clk 0:01:08]} 28. Nc4 {[%clk 0:01:43]}  Nxc4 {[%clk 0:01:02]} 29. Bxc4 {[%clk 0:01:44]}  Kg8 {[%clk 0:01:03]} 30. Re1 {[%clk 0:01:43]}  Kf8 {[%clk 0:01:03]} 31. g3 {[%clk 0:01:36]}  b6 {[%clk 0:01:04]} 32. Kg2 {[%clk 0:01:36]}  Bf5 {[%clk 0:01:03]} 33. Kf3 {[%clk 0:01:33]}  Rd6 {[%clk 0:01:02]} 34. Kf4 {[%clk 0:01:34]}  Bc8 {[%clk 0:01:01]} 35. b4 {[%clk 0:01:32]}  g5+ {[%clk 0:01:01]} 36. Kf3 {[%clk 0:01:32]}  h5 {[%clk 0:00:55]} 37. a4 {[%clk 0:01:28]}  c5 {[%clk 0:00:55]} 38. bxc5 {[%clk 0:01:08]}  bxc5 {[%clk 0:00:50]} 39. dxc5 {[%clk 0:01:04]}  Rc6 {[%clk 0:00:46]} 40. Bb5 {[%clk 0:01:04]}  Rxc5 {[%clk 0:00:46]} 41. Re8+ {[%clk 0:01:04]}  Kg7 {[%clk 0:00:46]} 42. Re3 {[%clk 0:00:39]}  a6 {[%clk 0:00:41]} 43. Bf1 {[%clk 0:00:38]}  Bb7+ {[%clk 0:00:38]} 44. Ke2 {[%clk 0:00:36]}  gxh4 {[%clk 0:00:38]} 45. gxh4 {[%clk 0:00:36]}  Rc4 {[%clk 0:00:38]} 46. Rg3+ {[%clk 0:00:33]}  Kf8 {[%clk 0:00:38]} 47. Kd2 {[%clk 0:00:29]}  Rxa4 {[%clk 0:00:35]} 48. c4 {[%clk 0:00:21]}  Ra2+ {[%clk 0:00:29]} 49. Ke3 {[%clk 0:00:22]}  a5 {[%clk 0:00:29]} 50. Bh3 {[%clk 0:00:18]}  a4 {[%clk 0:00:26]} 51. Rg1 {[%clk 0:00:18]}  a3 {[%clk 0:00:26]} 52. Rb1 {[%clk 0:00:16]}  Bc6 {[%clk 0:00:23]} 53. Bf1 {[%clk 0:00:15]}  Ke7 {[%clk 0:00:23]} 54. Bd3 {[%clk 0:00:15]}  Kd6 {[%clk 0:00:22]} 55. Kd4 {[%clk 0:00:15]}  Rxf2 {[%clk 0:00:21]} 56. c5+ {[%clk 0:00:15]}  Kc7 {[%clk 0:00:21]} 57. Rb3 {[%clk 0:00:14]}  a2 {[%clk 0:00:20]} 58. Ra3 {[%clk 0:00:15]}  Rf4+ {[%clk 0:00:19]} 59. Ke3 {[%clk 0:00:15]}  Ra4 {[%clk 0:00:19]} 0-1


[Site "https://www.chess.com"]

[Event "Titled Tuesday Blitz November 29 Early 2022"]
[White "Bortnyk, Olexandr"]
[Black "Shimanov, Aleksandr"]
[WhiteFideId "14120828"]
[BlackFideId "4198603"]
[WhiteElo "3036"]
[BlackElo "2879"]
[Result "1-0"]
[Round "07"]
[TimeControl "180+1"]
[Date "2022.11.30"]
[WhiteClock "0:00:17"]
[BlackClock "0:00:09"]

1. e4 {[%clk 0:03:00]}  g6 {[%clk 0:02:54]} 2. d4 {[%clk 0:02:58]}  Bg7 {[%clk 0:02:54]} 3. Nf3 {[%clk 0:02:54]}  d6 {[%clk 0:02:55]} 4. Bc4 {[%clk 0:02:54]}  a6 {[%clk 0:02:54]} 5. c3 {[%clk 0:02:48]}  e6 {[%clk 0:02:54]} 6. h4 {[%clk 0:02:44]}  h6 {[%clk 0:02:54]} 7. Qe2 {[%clk 0:02:43]}  Nd7 {[%clk 0:02:47]} 8. Bf4 {[%clk 0:02:36]}  Ne7 {[%clk 0:02:41]} 9. Nbd2 {[%clk 0:02:31]}  b6 {[%clk 0:02:38]} 10. e5 {[%clk 0:02:13]}  d5 {[%clk 0:02:23]} 11. Bd3 {[%clk 0:02:12]}  c5 {[%clk 0:02:21]} 12. O-O {[%clk 0:01:05]}  Bb7 {[%clk 0:02:17]} 13. a4 {[%clk 0:00:56]}  Nc6 {[%clk 0:02:08]} 14. Qe3 {[%clk 0:00:51]}  Qe7 {[%clk 0:02:08]} 15. Rfe1 {[%clk 0:00:45]}  cxd4 {[%clk 0:01:45]} 16. cxd4 {[%clk 0:00:44]}  Nb4 {[%clk 0:01:45]} 17. Bb1 {[%clk 0:00:26]}  a5 {[%clk 0:01:39]} 18. Ra3 {[%clk 0:00:25]}  Nb8 {[%clk 0:01:28]} 19. Rc3 {[%clk 0:00:25]}  N8c6 {[%clk 0:01:29]} 20. Rec1 {[%clk 0:00:25]}  Rc8 {[%clk 0:01:21]} 21. Nf1 {[%clk 0:00:23]}  Qd7 {[%clk 0:01:16]} 22. b3 {[%clk 0:00:22]}  Ne7 {[%clk 0:01:15]} 23. Ng3 {[%clk 0:00:22]}  Nf5 {[%clk 0:01:12]} 24. Bxf5 {[%clk 0:00:21]}  exf5 {[%clk 0:01:07]} 25. e6 {[%clk 0:00:22]}  fxe6 {[%clk 0:00:59]} 26. Rxc8+ {[%clk 0:00:20]}  Bxc8 {[%clk 0:00:58]} 27. Rc7 {[%clk 0:00:20]}  Nc6 {[%clk 0:00:11]} 28. Rxd7 {[%clk 0:00:20]}  Bxd7 {[%clk 0:00:11]} 29. Ne5 {[%clk 0:00:18]}  Bxe5 {[%clk 0:00:11]} 30. Bxe5 {[%clk 0:00:19]}  Rh7 {[%clk 0:00:11]} 31. Ne2 {[%clk 0:00:17]}  Kf7 {[%clk 0:00:10]} 32. Qg3 {[%clk 0:00:17]}  Nb4 {[%clk 0:00:09]} 33. Nf4 {[%clk 0:00:17]} 1-0


[Site "https://www.chess.com"]

[Event "Titled Tuesday Blitz November 29 Early 2022"]
[White "Caruana, Fabiano"]
[Black "Sadhwani, Raunak"]
[WhiteFideId "2020009"]
[BlackFideId "35093487"]
[WhiteElo "3075"]
[BlackElo "2993"]
[Result "1-0"]
[Round "07"]
[TimeControl "180+1"]
[Date "2022.11.30"]
[WhiteClock "0:01:33"]
[BlackClock "0:01:01"]

1. d4 {[%clk 0:03:00]}  Nf6 {[%clk 0:02:55]} 2. c4 {[%clk 0:03:01]}  e6 {[%clk 0:02:55]} 3. Nc3 {[%clk 0:03:02]}  d5 {[%clk 0:02:53]} 4. cxd5 {[%clk 0:03:01]}  Nxd5 {[%clk 0:02:54]} 5. e4 {[%clk 0:03:01]}  Nxc3 {[%clk 0:02:55]} 6. bxc3 {[%clk 0:03:02]}  c5 {[%clk 0:02:55]} 7. Rb1 {[%clk 0:03:02]}  Be7 {[%clk 0:02:53]} 8. Nf3 {[%clk 0:03:01]}  O-O {[%clk 0:02:53]} 9. Be3 {[%clk 0:03:02]}  b6 {[%clk 0:02:46]} 10. Bd3 {[%clk 0:02:56]}  Bb7 {[%clk 0:02:42]} 11. h4 {[%clk 0:02:55]}  cxd4 {[%clk 0:02:39]} 12. cxd4 {[%clk 0:02:55]}  Nc6 {[%clk 0:02:40]} 13. e5 {[%clk 0:02:16]}  g6 {[%clk 0:01:40]} 14. Be4 {[%clk 0:01:59]}  Na5 {[%clk 0:01:38]} 15. Bxb7 {[%clk 0:01:59]}  Nxb7 {[%clk 0:01:39]} 16. Bg5 {[%clk 0:01:45]}  Re8 {[%clk 0:01:33]} 17. Qd2 {[%clk 0:01:41]}  Qd5 {[%clk 0:01:31]} 18. O-O {[%clk 0:01:40]}  h5 {[%clk 0:01:17]} 19. Bxe7 {[%clk 0:01:38]}  Rxe7 {[%clk 0:01:18]} 20. Qh6 {[%clk 0:01:37]}  Rd7 {[%clk 0:01:01]} 21. Ng5 {[%clk 0:01:35]}  Rad8 {[%clk 0:01:01]} 22. Nh7 {[%clk 0:01:33]} 1-0


[Site "https://www.chess.com"]

[Event "Titled Tuesday Blitz November 29 Early 2022"]
[White "Costachi, Mihnea"]
[Black "sabkeIXO"]
[WhiteFideId "1217518"]
[WhiteElo "2424"]
[BlackElo "2504"]
[Result "1-0"]
[Round "07"]
[TimeControl "180+1"]
[Date "2022.11.30"]
[WhiteClock "0:00:05"]
[BlackClock "0:00:22"]

1. e4 {[%clk 0:03:00]}  d5 {[%clk 0:02:59]} 2. exd5 {[%clk 0:02:59]}  Nf6 {[%clk 0:02:59]} 3. d4 {[%clk 0:02:59]}  Nxd5 {[%clk 0:02:59]} 4. c4 {[%clk 0:02:59]}  Nb6 {[%clk 0:02:59]} 5. Nc3 {[%clk 0:02:58]}  Nc6 {[%clk 0:02:56]} 6. d5 {[%clk 0:02:55]}  Ne5 {[%clk 0:02:56]} 7. Nf3 {[%clk 0:02:49]}  Bg4 {[%clk 0:02:48]} 8. c5 {[%clk 0:02:36]}  Nbd7 {[%clk 0:02:40]} 9. Be3 {[%clk 0:02:36]}  e6 {[%clk 0:02:34]} 10. Nxe5 {[%clk 0:02:17]}  Bxd1 {[%clk 0:02:10]} 11. Bb5 {[%clk 0:02:17]}  Bh5 {[%clk 0:02:00]} 12. Bxd7+ {[%clk 0:01:56]}  Qxd7 {[%clk 0:01:54]} 13. Nxd7 {[%clk 0:01:55]}  Kxd7 {[%clk 0:01:55]} 14. f3 {[%clk 0:01:43]}  e5 {[%clk 0:01:41]} 15. O-O-O {[%clk 0:01:34]}  f5 {[%clk 0:01:36]} 16. b4 {[%clk 0:01:25]}  a5 {[%clk 0:01:19]} 17. b5 {[%clk 0:01:25]}  b6 {[%clk 0:01:20]} 18. d6 {[%clk 0:01:05]}  bxc5 {[%clk 0:01:10]} 19. dxc7+ {[%clk 0:00:57]}  Kxc7 {[%clk 0:01:11]} 20. Rd5 {[%clk 0:00:54]}  Bf7 {[%clk 0:01:05]} 21. Rxe5 {[%clk 0:00:53]}  Bd6 {[%clk 0:01:04]} 22. Rxf5 {[%clk 0:00:52]}  Be6 {[%clk 0:01:04]} 23. Rg5 {[%clk 0:00:46]}  g6 {[%clk 0:01:03]} 24. Ne4 {[%clk 0:00:39]}  Bf5 {[%clk 0:00:55]} 25. Nxd6 {[%clk 0:00:27]}  Kxd6 {[%clk 0:00:56]} 26. Rd1+ {[%clk 0:00:27]}  Ke5 {[%clk 0:00:45]} 27. Rg3 {[%clk 0:00:17]}  Rhd8 {[%clk 0:00:41]} 28. f4+ {[%clk 0:00:18]}  Ke6 {[%clk 0:00:36]} 29. Rxd8 {[%clk 0:00:18]}  Rxd8 {[%clk 0:00:37]} 30. b6 {[%clk 0:00:10]}  c4 {[%clk 0:00:33]} 31. Bc5 {[%clk 0:00:08]}  Kd5 {[%clk 0:00:32]} 32. Bf2 {[%clk 0:00:08]}  Kc6 {[%clk 0:00:32]} 33. Rc3 {[%clk 0:00:08]}  Bd3 {[%clk 0:00:32]} 34. Kd2 {[%clk 0:00:05]}  Re8 {[%clk 0:00:32]} 35. Be3 {[%clk 0:00:05]}  h6 {[%clk 0:00:32]} 36. Rc1 {[%clk 0:00:05]}  h5 {[%clk 0:00:32]} 37. g3 {[%clk 0:00:05]}  Kb7 {[%clk 0:00:31]} 38. Re1 {[%clk 0:00:05]}  Re6 {[%clk 0:00:29]} 39. Kc3 {[%clk 0:00:06]}  h4 {[%clk 0:00:26]} 40. gxh4 {[%clk 0:00:05]}  Re8 {[%clk 0:00:26]} 41. Kd2 {[%clk 0:00:05]}  Rh8 {[%clk 0:00:26]} 42. Bf2 {[%clk 0:00:06]}  Bf5 {[%clk 0:00:20]} 43. Re7+ {[%clk 0:00:06]}  Kc6 {[%clk 0:00:21]} 44. Rc7+ {[%clk 0:00:06]}  Kd6 {[%clk 0:00:21]} 45. Bc5+ {[%clk 0:00:06]}  Kd5 {[%clk 0:00:21]} 46. b7 {[%clk 0:00:06]}  Rxh4 {[%clk 0:00:20]} 47. b8=Q {[%clk 0:00:05]}  Rxh2+ {[%clk 0:00:21]} 48. Ke1 {[%clk 0:00:05]}  Rh1+ {[%clk 0:00:21]} 49. Kf2 {[%clk 0:00:05]}  Ke4 {[%clk 0:00:22]} 50. Qb7+ {[%clk 0:00:05]}  Kd3 {[%clk 0:00:22]} 51. Rd7+ {[%clk 0:00:05]}  Kc2 {[%clk 0:00:21]} 52. Qxh1 {[%clk 0:00:05]}  c3 {[%clk 0:00:22]} 53. Qd1+ {[%clk 0:00:04]}  Kb2 {[%clk 0:00:22]} 54. Qb3+ {[%clk 0:00:04]}  Kc1 {[%clk 0:00:22]} 55. Rd1# {[%clk 0:00:05]} 1-0


[Site "https://www.chess.com"]

[Event "Titled Tuesday Blitz November 29 Early 2022"]
[White "Czopor, Maciej"]
[Black "Putnam, Liam"]
[WhiteFideId "21805431"]
[BlackFideId "30938279"]
[WhiteElo "2324"]
[BlackElo "2082"]
[Result "1-0"]
[Round "07"]
[TimeControl "180+1"]
[Date "2022.11.30"]
[WhiteClock "0:00:16"]
[BlackClock "0:00:04"]

1. c4 {[%clk 0:03:00]}  e5 {[%clk 0:02:55]} 2. Nc3 {[%clk 0:03:01]}  Nc6 {[%clk 0:02:56]} 3. e3 {[%clk 0:03:01]}  f5 {[%clk 0:02:56]} 4. a3 {[%clk 0:03:00]}  Nf6 {[%clk 0:02:56]} 5. b4 {[%clk 0:03:00]}  g6 {[%clk 0:02:55]} 6. Bb2 {[%clk 0:03:00]}  Bg7 {[%clk 0:02:55]} 7. d3 {[%clk 0:02:56]}  O-O {[%clk 0:02:55]} 8. Nf3 {[%clk 0:02:55]}  d6 {[%clk 0:02:48]} 9. Be2 {[%clk 0:02:55]}  h6 {[%clk 0:02:44]} 10. O-O {[%clk 0:02:54]}  g5 {[%clk 0:02:44]} 11. b5 {[%clk 0:02:48]}  Ne7 {[%clk 0:02:44]} 12. d4 {[%clk 0:02:47]}  e4 {[%clk 0:02:40]} 13. Ne1 {[%clk 0:02:44]}  f4 {[%clk 0:02:39]} 14. exf4 {[%clk 0:02:34]}  gxf4 {[%clk 0:02:39]} 15. f3 {[%clk 0:02:34]}  Nf5 {[%clk 0:02:36]} 16. Nxe4 {[%clk 0:02:31]}  Nxe4 {[%clk 0:02:29]} 17. fxe4 {[%clk 0:02:32]}  Ne3 {[%clk 0:02:30]} 18. Qb3 {[%clk 0:02:31]}  Nxf1 {[%clk 0:02:26]} 19. Bxf1 {[%clk 0:02:32]}  Qe7 {[%clk 0:02:21]} 20. Nf3 {[%clk 0:02:13]}  c5 {[%clk 0:02:13]} 21. bxc6 {[%clk 0:02:04]}  bxc6 {[%clk 0:02:14]} 22. Re1 {[%clk 0:02:04]}  Bg4 {[%clk 0:02:09]} 23. c5+ {[%clk 0:02:01]}  Be6 {[%clk 0:02:04]} 24. d5 {[%clk 0:01:35]}  Rab8 {[%clk 0:02:02]} 25. Qc4 {[%clk 0:01:36]}  Rxb2 {[%clk 0:01:53]} 26. dxe6 {[%clk 0:01:36]}  dxc5 {[%clk 0:01:51]} 27. Rd1 {[%clk 0:01:31]}  Rb7 {[%clk 0:01:34]} 28. Nh4 {[%clk 0:01:18]}  Kh7 {[%clk 0:00:54]} 29. Nf5 {[%clk 0:01:15]}  Qg5 {[%clk 0:00:54]} 30. e7 {[%clk 0:01:01]}  Rxe7 {[%clk 0:00:54]} 31. Nxe7 {[%clk 0:00:59]}  Qxe7 {[%clk 0:00:54]} 32. Be2 {[%clk 0:00:49]}  Bd4+ {[%clk 0:00:53]} 33. Kh1 {[%clk 0:00:48]}  Rb8 {[%clk 0:00:45]} 34. Bf3 {[%clk 0:00:45]}  Kg7 {[%clk 0:00:45]} 35. Qa6 {[%clk 0:00:40]}  Rb6 {[%clk 0:00:43]} 36. Qc8 {[%clk 0:00:39]}  Qd6 {[%clk 0:00:24]} 37. Qg4+ {[%clk 0:00:37]}  Kh7 {[%clk 0:00:16]} 38. Qf5+ {[%clk 0:00:36]}  Kg7 {[%clk 0:00:17]} 39. Qg4+ {[%clk 0:00:35]}  Kh7 {[%clk 0:00:16]} 40. Qf5+ {[%clk 0:00:23]}  Kh8 {[%clk 0:00:16]} 41. a4 {[%clk 0:00:23]}  Rb8 {[%clk 0:00:15]} 42. a5 {[%clk 0:00:20]}  Rf8 {[%clk 0:00:16]} 43. Qh5 {[%clk 0:00:20]}  Kg7 {[%clk 0:00:14]} 44. Qg4+ {[%clk 0:00:20]}  Kh7 {[%clk 0:00:14]} 45. a6 {[%clk 0:00:19]}  c4 {[%clk 0:00:13]} 46. e5 {[%clk 0:00:17]}  Qxe5 {[%clk 0:00:08]} 47. Qd7+ {[%clk 0:00:17]}  Qg7 {[%clk 0:00:07]} 48. Qxd4 {[%clk 0:00:18]}  Qxd4 {[%clk 0:00:05]} 49. Rxd4 {[%clk 0:00:19]}  Rb8 {[%clk 0:00:05]} 50. h4 {[%clk 0:00:18]}  c3 {[%clk 0:00:04]} 51. Rc4 {[%clk 0:00:18]}  Rb1+ {[%clk 0:00:01]} 52. Kh2 {[%clk 0:00:19]}  Rc1 {[%clk 0:00:01]} 53. Bxc6 {[%clk 0:00:19]}  Kg7 {[%clk 0:00:02]} 54. Be4 {[%clk 0:00:18]}  Kf6 {[%clk 0:00:02]} 55. Rc5 {[%clk 0:00:18]}  Re1 {[%clk 0:00:01]} 56. Bd3 {[%clk 0:00:16]}  Rc1 {[%clk 0:00:02]} 57. Kh3 {[%clk 0:00:14]}  Ke6 {[%clk 0:00:02]} 58. Kg4 {[%clk 0:00:15]}  Kd6 {[%clk 0:00:03]} 59. Rc4 {[%clk 0:00:14]}  Kd5 {[%clk 0:00:03]} 60. Kxf4 {[%clk 0:00:14]}  Kd6 {[%clk 0:00:01]} 61. Ke4 {[%clk 0:00:14]}  Ke6 {[%clk 0:00:01]} 62. Kd4 {[%clk 0:00:14]}  Kd6 {[%clk 0:00:02]} 63. Rxc3 {[%clk 0:00:15]}  Rg1 {[%clk 0:00:02]} 64. Be4 {[%clk 0:00:14]}  Re1 {[%clk 0:00:03]} 65. Rc6+ {[%clk 0:00:13]}  Kd7 {[%clk 0:00:03]} 66. Rxh6 {[%clk 0:00:14]}  Rd1+ {[%clk 0:00:03]} 67. Ke5 {[%clk 0:00:15]}  Re1 {[%clk 0:00:03]} 68. Rh7+ {[%clk 0:00:15]}  Kd8 {[%clk 0:00:03]} 69. Rxa7 {[%clk 0:00:16]}  Kc8 {[%clk 0:00:03]} 70. Rg7 {[%clk 0:00:16]}  Kb8 {[%clk 0:00:04]} 71. a7+ {[%clk 0:00:16]} 1-0


[Site "https://www.chess.com"]

[Event "Titled Tuesday Blitz November 29 Early 2022"]
[White "Devaev, Alexander"]
[Black "Putri, Regita Desyari"]
[WhiteFideId "4169395"]
[BlackFideId "7109083"]
[WhiteElo "2225"]
[BlackElo "1930"]
[Result "1-0"]
[Round "07"]
[TimeControl "180+1"]
[Date "2022.11.30"]
[WhiteClock "0:01:27"]
[BlackClock "0:00:19"]

1. d4 {[%clk 0:02:57]}  Nf6 {[%clk 0:02:49]} 2. c4 {[%clk 0:02:52]}  g6 {[%clk 0:02:49]} 3. Nc3 {[%clk 0:02:53]}  d5 {[%clk 0:02:49]} 4. Nf3 {[%clk 0:02:47]}  Bg7 {[%clk 0:02:48]} 5. Bg5 {[%clk 0:02:48]}  dxc4 {[%clk 0:02:46]} 6. e4 {[%clk 0:02:47]}  O-O {[%clk 0:02:46]} 7. Bxc4 {[%clk 0:02:46]}  Nc6 {[%clk 0:02:45]} 8. h3 {[%clk 0:02:42]}  a6 {[%clk 0:02:37]} 9. a4 {[%clk 0:02:27]}  h6 {[%clk 0:02:21]} 10. Be3 {[%clk 0:02:26]}  Na5 {[%clk 0:01:49]} 11. Ba2 {[%clk 0:02:21]}  Rb8 {[%clk 0:01:38]} 12. b4 {[%clk 0:01:48]}  Nc6 {[%clk 0:01:36]} 13. Rb1 {[%clk 0:01:40]}  Nd7 {[%clk 0:00:25]} 14. b5 {[%clk 0:01:33]}  axb5 {[%clk 0:00:22]} 15. axb5 {[%clk 0:01:34]}  Na5 {[%clk 0:00:21]} 16. O-O {[%clk 0:01:35]}  Nb6 {[%clk 0:00:19]} 17. Qe2 {[%clk 0:01:27]} 1-0


[Site "https://www.chess.com"]

[Event "Titled Tuesday Blitz November 29 Early 2022"]
[White "Donskov, Anatoly"]
[Black "Maksimenko, Viktor"]
[WhiteFideId "24143413"]
[BlackFideId "13710478"]
[WhiteElo "2219"]
[BlackElo "2277"]
[Result "0-1"]
[Round "07"]
[TimeControl "180+1"]
[Date "2022.11.30"]
[WhiteClock "0:00:02"]
[BlackClock "0:00:42"]

1. e4 {[%clk 0:03:00]}  e5 {[%clk 0:03:00]} 2. Nf3 {[%clk 0:03:00]}  Nc6 {[%clk 0:03:00]} 3. Bb5 {[%clk 0:03:01]}  a6 {[%clk 0:03:00]} 4. Ba4 {[%clk 0:03:01]}  Nf6 {[%clk 0:03:01]} 5. Qe2 {[%clk 0:03:02]}  b5 {[%clk 0:03:01]} 6. Bb3 {[%clk 0:03:02]}  Bc5 {[%clk 0:03:02]} 7. c3 {[%clk 0:03:02]}  O-O {[%clk 0:03:02]} 8. O-O {[%clk 0:03:01]}  d6 {[%clk 0:03:03]} 9. Rd1 {[%clk 0:03:01]}  Bb6 {[%clk 0:03:01]} 10. d3 {[%clk 0:03:01]}  h6 {[%clk 0:02:59]} 11. Nbd2 {[%clk 0:03:00]}  Be6 {[%clk 0:02:58]} 12. Nf1 {[%clk 0:02:58]}  Re8 {[%clk 0:02:50]} 13. Ng3 {[%clk 0:02:52]}  Ne7 {[%clk 0:02:41]} 14. d4 {[%clk 0:02:40]}  exd4 {[%clk 0:02:39]} 15. cxd4 {[%clk 0:02:41]}  Ng6 {[%clk 0:02:37]} 16. Bc2 {[%clk 0:02:03]}  Qe7 {[%clk 0:02:29]} 17. b3 {[%clk 0:01:54]}  c5 {[%clk 0:02:28]} 18. dxc5 {[%clk 0:01:26]}  Bxc5 {[%clk 0:02:23]} 19. h3 {[%clk 0:01:24]}  Rac8 {[%clk 0:02:21]} 20. Bb2 {[%clk 0:01:23]}  Nf4 {[%clk 0:02:15]} 21. Qd2 {[%clk 0:01:20]}  Ng6 {[%clk 0:01:56]} 22. Re1 {[%clk 0:01:19]}  Nd7 {[%clk 0:01:54]} 23. Nf5 {[%clk 0:01:13]}  Bxf5 {[%clk 0:01:50]} 24. exf5 {[%clk 0:01:13]}  Nge5 {[%clk 0:01:51]} 25. Nd4 {[%clk 0:00:48]}  Bxd4 {[%clk 0:01:44]} 26. Bxd4 {[%clk 0:00:48]}  Qg5 {[%clk 0:01:41]} 27. Qxg5 {[%clk 0:00:26]}  hxg5 {[%clk 0:01:42]} 28. Rac1 {[%clk 0:00:23]}  Kf8 {[%clk 0:01:38]} 29. Kf1 {[%clk 0:00:22]}  Nc5 {[%clk 0:01:35]} 30. Red1 {[%clk 0:00:19]}  f6 {[%clk 0:01:33]} 31. Bb1 {[%clk 0:00:18]}  Ke7 {[%clk 0:01:26]} 32. f3 {[%clk 0:00:17]}  Red8 {[%clk 0:01:19]} 33. b4 {[%clk 0:00:11]}  Ncd7 {[%clk 0:01:18]} 34. Be4 {[%clk 0:00:10]}  Rc4 {[%clk 0:01:15]} 35. Rxc4 {[%clk 0:00:09]}  Nxc4 {[%clk 0:01:15]} 36. Bd5 {[%clk 0:00:08]}  Nde5 {[%clk 0:01:10]} 37. g3 {[%clk 0:00:08]}  Rh8 {[%clk 0:01:05]} 38. Kg2 {[%clk 0:00:08]}  a5 {[%clk 0:01:04]} 39. Re1 {[%clk 0:00:07]}  axb4 {[%clk 0:00:54]} 40. f4 {[%clk 0:00:06]}  gxf4 {[%clk 0:00:55]} 41. gxf4 {[%clk 0:00:07]}  Ra8 {[%clk 0:00:56]} 42. fxe5 {[%clk 0:00:07]}  Rxa2+ {[%clk 0:00:55]} 43. Kg3 {[%clk 0:00:07]}  fxe5 {[%clk 0:00:55]} 44. Bf2 {[%clk 0:00:06]}  b3 {[%clk 0:00:53]} 45. Kf3 {[%clk 0:00:06]}  b2 {[%clk 0:00:50]} 46. Bh4+ {[%clk 0:00:06]}  Kd7 {[%clk 0:00:49]} 47. Be6+ {[%clk 0:00:04]}  Kc6 {[%clk 0:00:48]} 48. Ke4 {[%clk 0:00:03]}  Ra1 {[%clk 0:00:48]} 49. Bd5+ {[%clk 0:00:03]}  Kc5 {[%clk 0:00:45]} 50. Bf2+ {[%clk 0:00:02]}  Kb4 {[%clk 0:00:46]} 51. Kd3 {[%clk 0:00:02]}  Rc1 {[%clk 0:00:42]} 0-1


[Site "https://www.chess.com"]